bitfinex-derivatives/quotes_SOLF0:USTF0_20240926
["timestamp","ask_amount","ask_price","bid_price","bid_amount"]
[1727314891429,3.3827,147.83,147.82,16.28]
[1727314891732,19.62731253,147.89,147.81,16.28]
[1727314891939,3.3831,147.82,147.81,16.28]
[1727314893140,3.3834,147.81,147.79,16.28]
[1727314893336,1.3169,147.88,147.77,16.28]
[1727314893640,3.3838,147.79,147.77,16.28]
[1727314894034,16.28,147.86,147.77,16.28]
[1727314894241,16.28,147.82,147.74,81.24]
[1727314894542,7.42316291,147.81,147.74,81.24]
[1727314894740,23.70316291,147.81,147.74,81.24]
[1727314895237,3.3846,147.75,147.74,81.24]
[1727314897143,3.3856,147.71,147.7,16.28]
[1727314897968,3.3849,147.74,147.7,16.28]
[1727314898149,3.3849,147.74,147.72,16.28]
[1727314898442,3.385,147.73,147.72,16.28]
[1727314898743,13.55778376,147.8,147.72,16.28]
[1727314898933,3.3848,147.74,147.72,16.28]
[1727314899848,3.385,147.73,147.72,16.28]
[1727314900045,16.90883326,147.8,147.72,16.28]
[1727314900046,11.36004801,147.79,147.72,16.28]
[1727314900240,24.91783177,147.8,147.72,16.28]
[1727314900441,24.91783177,147.8,147.7,3.45253267]
[1727314900738,24.91783177,147.8,147.74,16.28]
[1727314901545,3.3845,147.76,147.74,16.28]
[1727314901740,13.55778376,147.79,147.74,16.28]
[1727314901940,24.92927329,147.8,147.74,16.28]
[1727314904942,24.92927329,147.8,147.76,16.28]
[1727314906544,11.37148953,147.8,147.79,16.28]
[1727314906740,13.63292566,147.87,147.79,16.28]
[1727314906946,13.63292566,147.86,147.78,16.28]
[1727314907439,3.3836,147.79,147.78,16.28]
[1727314907642,13.63292566,147.86,147.76,16.28]
[1727314907843,16.28,147.84,147.74,16.28]
[1727314908747,16.28,147.85,147.76,16.28]
[1727314909342,3.3841,147.78,147.76,16.28]
[1727314914350,16.28,147.85,147.76,16.28]
[1727314914650,3.3841,147.77,147.76,16.28]
[1727314914954,4.1097,147.88,147.74,16.28]
[1727314915144,3.3847,147.75,147.74,16.28]
[1727314915343,4.1097,147.88,147.72,3.36627907]
[1727314915344,16.28,147.81,147.72,16.28]
[1727314915549,14.96695554,147.8,147.72,16.28]
[1727314915749,3.3848,147.74,147.72,16.28]
[1727314915954,17.595,147.8,147.72,16.28]
[1727314916455,13.65942494,147.79,147.72,16.28]
[1727314916845,3.3845,147.76,147.72,16.28]
[1727314917249,1.315,147.8,147.74,16.28]
[1727314917449,3.3842,147.77,147.74,16.28]
[1727314919057,3.3842,147.77,147.76,16.28]
[1727314919356,3.3839,147.78,147.76,16.28]
[1727314920052,3.3841,147.77,147.76,16.28]
[1727314920559,2.6579,147.82,147.74,16.28]
[1727314920860,3.46232737,147.81,147.74,16.28]
[1727314921054,28.57390542,147.81,147.74,16.28]
[1727314921357,3.3846,147.75,147.74,16.28]
[1727314921953,3.34585557,147.81,147.72,16.28]
[1727314922456,3.3847,147.75,147.72,16.28]
[1727314923348,13.67796513,147.81,147.74,16.28]
[1727314923959,3.3842,147.77,147.74,16.28]
[1727314924559,3.3843,147.76,147.74,16.28]
[1727314924755,16.33586513,147.82,147.74,16.28]
[1727314924956,3.384,147.78,147.76,16.28]
[1727314926063,15.01304655,147.82,147.77,16.28]
[1727314926257,1.3321,147.82,147.77,16.28]
[1727314927754,3.3836,147.8,147.77,16.28]
[1727314927956,1.3321,147.82,147.77,16.28]
[1727314928659,25.1297657,147.85,147.8,16.28]
[1727314928861,25.1297657,147.85,147.81,16.28]
[1727314929060,1.3962,147.86,147.81,16.28]
[1727314930157,15.07344869,147.86,147.81,16.28]
[1727314930362,13.67724869,147.85,147.8,16.28]
[1727314930659,13.67724869,147.85,147.76,1.3636]
[1727314930660,26.51971696,147.86,147.78,16.28]
[1727314930865,3.3833,147.81,147.78,16.28]
[1727314931460,1.3962,147.86,147.8,16.28]
[1727314932167,3.3829,147.83,147.8,16.28]
[1727314932862,3.383,147.82,147.8,16.28]
[1727314933264,3.383,147.82,147.76,17.6436]
[1727314933265,1.3962,147.86,147.81,16.28]
[1727314933455,3.3827,147.84,147.81,16.28]
[1727314933861,13.67384731,147.85,147.81,16.28]
[1727314934057,25.11725609,147.87,147.81,16.28]
[1727314935164,3.3826,147.84,147.81,16.28]
[1727314935767,1.3108,147.88,147.83,16.28]
[1727314935962,13.66767122,147.92,147.87,16.28]
[1727314936165,11.43941644,147.95,147.87,16.28]
[1727314936357,29.09058766,147.96,147.89,16.28]
[1727314936562,25.10708766,147.95,147.89,16.28]
[1727314936756,3.3808,147.92,147.89,16.28]
[1727314936964,25.10708766,147.94,147.89,16.28]
[1727314937163,3.3807,147.92,147.89,16.28]
[1727314937368,3.9835,147.96,147.89,16.28]
[1727314937765,3.9835,147.96,147.93,16.28]
[1727314937971,3.3801,147.95,147.93,16.28]
[1727314938268,2.6662,147.96,147.93,16.28]
[1727314938562,3.45043614,148.0,147.93,16.28]
[1727314938766,3.45043614,148.0,147.87,81.24]
[1727314938767,2.6732,147.99,147.91,16.28]
[1727314939267,16.30707032,147.99,147.92,16.28]
[1727314939570,2.6732,147.99,147.92,16.28]
[1727314940558,3.3799,147.96,147.92,16.28]
[1727314940760,2.6732,147.99,147.92,16.28]
[1727314941870,3.3802,147.95,147.92,16.28]
[1727314944276,3.3802,147.94,147.92,16.28]
[1727314944472,2.6732,147.99,147.92,16.28]
[1727314944667,1.3256,147.99,147.96,16.28]
[1727314944873,3.3793,147.98,147.96,16.28]
[1727314945265,1.3173,148.01,147.96,16.28]
[1727314945469,1.3894,148.04,147.98,16.28]
[1727314946168,3.3791,147.99,147.98,16.28]
[1727314947178,3.3791,147.99,147.97,16.28]
[1727314947873,1.3894,148.04,147.98,16.28]
[1727314948289,1.3894,148.04,148.0,16.28]
[1727314948290,3.3782,148.03,148.0,16.28]
[1727314948675,1.3894,148.04,148.0,16.28]
[1727314949278,1.3894,148.04,147.98,16.28]
[1727314949767,1.3894,148.04,148.0,16.28]
[1727314949973,1.3309,148.06,148.02,16.28]
[1727314950866,3.3779,148.05,148.02,16.28]
[1727314951077,1.3309,148.06,148.02,16.28]
[1727314951468,3.3781,148.04,148.02,16.28]
[1727314951978,3.3784,148.02,148.0,16.28]
[1727314952289,1.3309,148.06,148.0,16.28]
[1727314952477,1.3309,148.06,147.98,16.28]
[1727314953068,3.3791,147.99,147.98,16.28]
[1727314953268,3.3791,147.99,147.94,3.3802]
[1727314953269,16.28,148.05,147.96,16.28]
[1727314953676,3.3792,147.99,147.96,16.28]
[1727314954074,16.28,148.07,147.98,16.28]
[1727314954277,3.3776,148.06,148.03,16.28]
[1727314956280,3.3773,148.07,148.03,16.28]
[1727314956685,3.3775,148.06,148.03,16.28]
[1727314957072,1.3185,148.08,148.03,16.28]
[1727314957275,3.3776,148.06,148.03,16.28]
[1727314957674,1.347,148.1,148.05,16.28]
[1727314958474,3.3772,148.08,148.05,16.28]
[1727314959185,1.347,148.1,148.05,16.28]
[1727314960885,3.3775,148.06,148.05,16.28]
[1727314961079,1.347,148.1,148.04,16.28]
[1727314961577,3.3777,148.05,148.04,16.28]
[1727314963179,1.347,148.1,147.98,81.14]
[1727314963380,16.28,148.09,148.0,16.28]
[1727314963688,3.3786,148.01,148.0,16.28]
[1727314963881,16.28,148.07,147.98,97.42]
[1727314964282,1.277,148.06,147.98,97.42]
[1727314964779,3.3788,148.01,147.98,97.42]
[1727314964981,3.43079282,148.05,147.98,97.42]
[1727314965286,1.277,148.06,147.98,97.42]
[1727314965287,1.3365,148.04,147.98,97.42]
[1727314966279,3.3788,148.01,147.98,97.42]
[1727314966982,1.3365,148.04,147.98,97.42]
[1727314966983,3.3789,148.0,147.98,16.28]
[1727314969286,1.3365,148.04,147.98,16.28]
[1727314969593,1.277,148.06,148.0,16.28]
[1727314969790,3.3784,148.03,148.0,16.28]
[1727314970091,1.277,148.06,148.0,16.28]
[1727314970489,3.3784,148.02,148.0,16.28]
[1727314970995,3.3786,148.01,148.0,16.28]
[1727314972192,3.3784,148.02,148.0,16.28]
[1727314972887,3.3782,148.03,148.0,16.28]
[1727314973090,1.277,148.06,148.0,16.28]
[1727314974790,3.3786,148.01,148.0,16.28]
[1727314975005,4.5950004,148.06,147.98,16.28]
[1727314975189,4.5950004,148.06,147.93,82.4501]
[1727314975190,1.277,148.06,147.96,16.28]
[1727314975394,3.3793,147.99,147.96,16.28]
[1727314975695,1.277,148.06,147.96,16.28]
[1727314975994,3.3795,147.98,147.96,16.28]
[1727314976190,19.63214038,148.05,147.96,16.28]
[1727314976495,16.28,148.03,147.93,81.12]
[1727314976688,1.3053,148.02,147.93,81.12]
[1727314977092,3.3799,147.96,147.93,81.12]
[1727314977494,1.3045,148.01,147.93,81.12]
[1727314977696,1.3037,148.0,147.93,81.12]
[1727314978220,17.5837,148.0,147.93,81.12]
[1727314978596,3.3802,147.94,147.93,81.12]
[1727314979504,16.28,147.97,147.89,16.28]
[1727314979505,3.3808,147.92,147.89,16.28]
[1727314979997,3.381,147.91,147.89,16.28]
[1727314980495,3.3811,147.9,147.89,16.28]
[1727314980701,1.397,147.96,147.89,16.28]
[1727314980894,1.397,147.96,147.92,16.28]
[1727314981088,1.3037,148.0,147.92,16.28]
[1727314982499,3.3806,147.93,147.9,16.28]
[1727314982699,16.28,147.99,147.9,16.28]
[1727314983091,3.3808,147.92,147.9,16.28]
[1727314983290,16.28,147.99,147.9,16.28]
[1727314983598,3.3809,147.91,147.9,16.28]
[1727314983795,3.30908238,147.95,147.88,16.28]
[1727314983995,16.28,147.96,147.88,16.28]
[1727314984198,1.3069,147.95,147.88,16.28]
[1727314986100,3.3812,147.9,147.88,16.28]
[1727314986298,3.3812,147.9,147.86,1.2816]
[1727314986299,3.3812,147.9,147.86,27.2816]
[1727314987009,1.3069,147.95,147.86,26.0]
[1727314987194,1.3233,147.94,147.86,26.0]
[1727314987398,3.3813,147.9,147.86,26.0]
[1727314987602,1.3233,147.94,147.86,26.0]
[1727314988299,3.3814,147.89,147.86,26.0]
[1727314989003,3.3812,147.9,147.86,26.0]
[1727314989804,3.3814,147.89,147.86,26.0]
[1727314990197,3.3816,147.88,147.86,26.0]
[1727314991002,1.3233,147.94,147.86,26.0]
[1727314991199,1.3466,147.96,147.88,26.0]
[1727314991397,26.0,148.0,147.88,26.0]
[1727314991604,3.3807,147.92,147.88,26.0]
[1727314991803,26.0,148.0,147.88,26.0]
[1727314992004,26.0,148.0,147.85,27.3505]
[1727314992005,4.0702,148.02,147.86,26.0]
[1727314992199,26.0,147.98,147.86,29.382]
[1727314992411,3.32566063,147.97,147.86,29.382]
[1727314993005,26.0,147.98,147.86,29.382]
[1727314993803,3.3809,147.92,147.86,29.382]
[1727314994005,26.0,148.01,147.88,26.0]
[1727314994705,26.0,148.01,147.88,29.3815]
[1727314994906,26.0,148.01,147.88,26.0]
[1727314995410,26.0,147.98,147.85,27.3505]
[1727314996110,3.3813,147.9,147.85,27.3505]
[1727314996711,3.3814,147.89,147.85,27.3505]
[1727314996914,1.3127,147.95,147.85,27.3505]
[1727314997207,3.9916,147.95,147.85,27.3505]
[1727314997710,7.34961724,147.95,147.85,27.3505]
[1727314999810,3.3816,147.89,147.85,27.3505]
[1727315001008,3.9916,147.95,147.85,27.3505]
[1727315001215,2.6716,147.95,147.88,26.0]
[1727315002205,3.3815,147.89,147.85,27.3505]
[1727315002514,2.6716,147.95,147.85,27.3505]
[1727315002713,3.3815,147.89,147.85,27.3505]
[1727315003312,3.3817,147.88,147.85,27.3505]
[1727315003512,3.38621357,147.94,147.85,1.3505]
[1727315004012,3.382,147.86,147.85,1.3505]
[1727315004417,3.382,147.86,147.83,107.18]
[1727315004807,27.3053,147.94,147.83,107.18]
[1727315004808,3.3823,147.85,147.83,107.18]
[1727315006714,3.3821,147.86,147.83,107.18]
[1727315006921,27.3053,147.94,147.83,107.18]
[1727315007122,3.3818,147.87,147.83,110.5626]
[1727315008120,26.0,147.92,147.83,81.18]
[1727315008423,16.24,147.9,147.83,81.18]
[1727315009524,16.24,147.92,147.83,97.42]
[1727315009922,3.3822,147.86,147.83,97.42]
[1727315010420,20.90490277,147.94,147.85,16.24]
[1727315010844,3.3817,147.88,147.85,16.24]
[1727315011017,20.90490277,147.94,147.85,16.24]
[1727315011321,3.382,147.87,147.85,16.24]
[1727315016232,3.382,147.86,147.85,16.24]
[1727315019236,20.90490277,147.94,147.85,16.24]
[1727315019530,1.3053,147.94,147.85,16.24]
[1727315019732,1.3053,147.94,147.85,19.6222]
[1727315020434,16.24,147.93,147.83,16.24]
[1727315021839,3.3819,147.87,147.83,16.24]
[1727315022137,3.3819,147.87,147.83,19.6227]
[1727315023132,3.3821,147.86,147.83,19.6227]
[1727315024035,17.5453,147.94,147.85,16.24]
[1727315024235,1.3053,147.94,147.87,16.24]
[1727315027275,16.24,147.99,147.91,16.24]
[1727315027446,6.7561,148.04,147.93,16.24]
[1727315027447,16.24,148.01,147.93,16.24]
[1727315028043,3.38,147.95,147.93,16.24]
[1727315029749,16.24,148.01,147.93,16.24]
[1727315030354,16.24,148.0,147.91,16.24]
[1727315030850,3.3806,147.93,147.91,16.24]
[1727315031040,16.24,147.98,147.89,16.24]
[1727315031453,16.24,147.96,147.87,97.44]
[1727315031658,1.3105,147.95,147.87,97.44]
[1727315032047,3.3812,147.9,147.87,97.44]
[1727315032254,16.24,147.94,147.87,81.2]
[1727315032651,1.3105,147.95,147.88,16.24]
[1727315033645,3.3805,147.93,147.89,3.36049611]
[1727315033852,1.3105,147.95,147.9,16.24]
[1727315034253,1.309,147.96,147.9,16.24]
[1727315034453,16.24,148.0,147.9,16.24]
[1727315035158,3.3801,147.95,147.92,16.24]
[1727315035353,16.24,148.0,147.92,16.24]
[1727315037167,3.3801,147.95,147.92,16.24]
[1727315039463,3.3798,147.96,147.92,16.24]
[1727315039663,3.3798,147.96,147.94,16.24]
[1727315040064,13.61533673,148.01,147.94,16.24]
[1727315040667,3.3797,147.97,147.94,16.24]
[1727315041359,16.24,148.0,147.92,16.24]
[1727315042472,3.3802,147.94,147.92,16.24]
[1727315043770,13.63011572,147.99,147.92,16.24]
[1727315043964,16.24,148.02,147.92,19.6207]
[1727315043965,25.0418945,148.01,147.92,19.6207]
[1727315044866,25.0418945,148.01,147.94,16.24]
[1727315045567,3.3797,147.97,147.94,16.24]
[1727315045970,16.24,148.02,147.94,16.24]
[1727315045971,3.3794,147.98,147.94,16.24]
[1727315046875,25.0648874,148.02,147.96,16.24]
[1727315047076,1.379,148.03,147.98,16.24]
[1727315047773,3.3786,148.01,147.98,16.24]
[1727315048271,3.3784,148.02,147.98,16.24]
[1727315048669,3.3784,148.02,148.0,16.24]
[1727315050670,15.01448795,148.07,147.98,19.59935706]
[1727315050671,3.3786,148.01,147.98,19.59935706]
[1727315051073,15.01448795,148.07,148.0,16.24]
[1727315051377,1.3849,148.07,148.0,16.24]
[1727315051571,1.3849,148.07,148.03,16.24]
[1727315051767,3.3776,148.06,148.03,16.24]
[1727315052774,3.3778,148.05,148.03,16.24]
[1727315053875,2.6721,148.1,148.04,16.24]
[1727315054981,3.3771,148.08,148.04,16.24]
[1727315055481,3.3773,148.07,148.04,16.24]
[1727315057179,3.3775,148.06,148.04,16.24]
[1727315059771,1.3081,148.13,148.04,16.24]
[1727315059980,1.3081,148.13,148.09,16.24]
[1727315060172,1.3081,148.13,148.07,16.24]
[1727315060374,3.377,148.09,148.07,16.24]
[1727315061281,3.377,148.08,148.07,16.24]
[1727315063683,1.3081,148.13,148.05,16.24]
[1727315064889,3.3774,148.07,148.04,84.4979]
[1727315065084,3.3774,148.07,148.06,16.24]
[1727315066586,3.3769,148.09,148.06,16.24]
[1727315066787,1.3081,148.13,148.06,16.24]
[1727315068585,3.3769,148.09,148.06,16.24]
[1727315069090,1.3459,148.14,148.06,16.24]
[1727315069890,3.3772,148.08,148.06,16.24]
[1727315070987,3.3772,148.07,148.06,16.24]
[1727315073192,3.3771,148.08,148.06,16.24]
[1727315073592,1.3459,148.14,148.06,16.24]
[1727315075100,3.3772,148.07,148.06,16.24]
[1727315076189,1.3459,148.14,148.01,3.37220137]
[1727315076385,16.24,148.1,148.01,16.24]
[1727315076590,2.6843,148.09,148.01,16.24]
[1727315076785,3.3782,148.03,148.01,16.24]
[1727315079197,3.3784,148.02,148.01,16.24]
[1727315080394,3.3788,148.01,148.0,16.24]
[1727315090301,3.3788,148.0,147.97,6.67486836]
[1727315090495,3.3788,148.0,147.99,10.38]
[1727315095809,4.7319178,148.08,147.96,53.05660027]
[1727315096006,10.38,148.02,147.97,10.38]
[1727315096309,4.7319178,148.08,147.96,53.05660027]
[1727315096310,3.3795,147.97,147.96,53.05660027]
[1727315096605,13.0185,148.01,147.95,10.38]
[1727315096805,1.3533,148.0,147.95,10.38]
[1727315097210,3.38,147.96,147.95,10.38]
[1727315099809,1.3533,148.0,147.95,10.38]
[1727315099810,3.3797,147.97,147.95,10.38]
[1727315100001,1.3533,148.0,147.96,10.38]
[1727315100209,3.3795,147.97,147.96,10.38]
[1727315104405,1.3533,148.0,147.89,84.41994967]
[1727315104608,10.38,147.97,147.92,10.38]
[1727315105010,1.3533,148.0,147.94,10.38]
[1727315105011,10.38,147.98,147.94,10.38]
[1727315105209,10.38,147.98,147.89,84.41994967]
[1727315105210,1.3533,148.0,147.96,10.38]
[1727315105413,1.3533,148.0,147.97,10.38]
[1727315106014,3.3793,147.98,147.97,10.38]
[1727315107311,3.3797,147.97,147.96,10.38]
[1727315108513,2.6385,148.01,147.96,10.38]
[1727315108712,1.2919,148.01,148.0,10.38]
[1727315108914,1.2998,148.05,148.0,10.38]
[1727315109115,2.5864,148.05,148.02,10.38]
[1727315109709,2.5864,148.05,148.03,10.38]
[1727315109913,1.2866,148.05,148.03,10.38]
[1727315110116,1.2866,148.05,147.97,3.46134653]
[1727315110117,3.3787,148.01,148.0,10.38]
[1727315110332,3.3787,148.01,147.97,6.84074653]
[1727315110333,3.3787,148.01,147.97,19.56693009]
[1727315110917,1.2866,148.05,147.99,16.23]
[1727315111219,1.2866,148.05,148.0,16.23]
[1727315112123,3.3781,148.04,148.0,19.6088]
[1727315113016,1.2982,148.07,148.02,16.23]
[1727315113523,3.3779,148.05,148.02,16.23]
[1727315113725,1.2982,148.07,148.02,16.23]
[1727315114126,3.3776,148.06,148.02,19.6083]
[1727315114519,1.2982,148.07,148.03,3.3781]
[1727315114725,1.2982,148.07,148.02,16.23]
[1727315115026,1.2982,148.07,147.97,3.33693009]
[1727315115027,1.4027,148.1,148.04,16.23]
[1727315115226,3.3773,148.07,148.04,16.23]
[1727315115823,1.4027,148.1,148.04,16.23]
[1727315116022,1.3424,148.13,148.06,16.23]
[1727315116527,1.3424,148.13,148.04,16.23]
[1727315117031,3.3771,148.08,148.04,16.23]
[1727315117221,3.3771,148.08,148.04,19.60140076]
[1727315118326,3.3773,148.07,148.04,16.23]
[1727315118530,16.23,148.12,148.04,16.23]
[1727315118727,3.3779,148.05,148.02,16.23]
[1727315119133,1.3424,148.13,148.04,16.23]
[1727315119330,1.3424,148.13,148.06,16.23]
[1727315119924,3.377,148.09,148.06,16.23]
[1727315120232,26.32312561,148.13,148.06,16.23]
[1727315120529,14.94314028,148.13,148.06,16.23]
[1727315120731,3.377,148.09,148.06,16.23]
[1727315121028,1.3424,148.13,148.06,16.23]
[1727315121622,26.32197029,148.13,148.06,16.23]
[1727315121826,14.94253345,148.13,148.06,16.23]
[1727315122128,13.60013345,148.12,148.06,16.23]
[1727315122328,13.60013345,148.12,148.06,19.6074]
[1727315122627,1.3424,148.13,148.06,16.23]
[1727315122853,14.94253345,148.13,148.06,16.23]
[1727315123021,1.3424,148.13,148.06,16.23]
[1727315123221,13.60013345,148.12,148.06,16.23]
[1727315123629,1.3424,148.13,148.06,16.23]
[1727315123830,3.3768,148.09,148.06,16.23]
[1727315124227,1.3424,148.13,148.04,16.23]
[1727315124228,17.5724,148.13,148.04,16.23]
[1727315124426,3.3774,148.07,148.04,16.23]
[1727315125427,1.3424,148.13,148.04,16.23]
[1727315125627,17.5724,148.13,148.04,16.23]
[1727315126027,3.3774,148.07,148.04,16.23]
[1727315126427,17.5724,148.13,148.04,16.23]
[1727315126828,16.23,148.11,148.02,16.23]
[1727315127232,3.3779,148.05,148.02,16.23]
[1727315127432,16.23,148.11,148.02,16.23]
[1727315127635,16.23,148.09,148.01,81.12]
[1727315127831,6.11325331,148.08,148.01,81.12]
[1727315128030,19.5600627,148.07,148.01,81.12]
[1727315128236,3.3784,148.02,148.01,81.12]
[1727315128936,3.3784,148.02,147.98,16.23]
[1727315128937,3.3787,148.01,147.98,16.23]
[1727315129140,20.8870627,148.07,147.98,16.23]
[1727315129338,3.379,148.0,147.98,16.23]
[1727315129733,20.8870627,148.07,147.98,16.23]
[1727315129928,20.8870627,148.07,147.96,16.23]
[1727315130436,10.39,148.02,147.97,10.39]
[1727315131234,10.39,148.01,147.96,10.39]
[1727315131437,10.39,147.99,147.94,10.39]
[1727315131641,3.38,147.95,147.94,10.39]
[1727315131829,10.39,147.99,147.94,10.39]
[1727315132029,10.39,147.99,147.95,10.39]
[1727315132235,3.3799,147.96,147.95,10.39]
[1727315132540,3.3799,147.96,147.93,97.34]
[1727315132742,2.6449,148.0,147.95,16.24]
[1727315133134,3.3795,147.98,147.95,16.24]
[1727315133533,3.3792,147.99,147.95,19.62]
[1727315133737,3.3792,147.99,147.97,16.24]
[1727315135443,3.3793,147.98,147.97,16.24]
[1727315136032,3.3793,147.98,147.94,3.3801]
[1727315136238,1.2857,148.01,147.94,16.24]
[1727315136429,1.2857,148.01,147.92,16.24]
[1727315136634,3.3801,147.95,147.92,16.24]
[1727315136942,1.3705,148.0,147.93,16.24]
[1727315137137,1.3705,148.0,147.95,16.24]
[1727315137843,1.2857,148.01,147.95,16.24]
[1727315138243,3.3795,147.98,147.95,16.24]
[1727315140034,1.3671,148.05,147.96,3.3796]
[1727315140235,2.6686,148.05,147.97,16.24]
[1727315140738,2.6686,148.05,147.97,19.6194]
[1727315141147,3.3788,148.01,147.97,16.24]
[1727315141938,3.3789,148.0,147.97,16.24]
[1727315142444,3.3789,148.0,147.97,19.65941978]
[1727315142641,3.3784,148.02,147.98,3.3791]
[1727315142941,2.6686,148.05,147.98,3.3791]
[1727315143146,3.3788,148.01,147.97,23.03891978]
[1727315143440,2.6686,148.05,147.97,19.65941978]
[1727315144844,3.379,148.0,147.97,19.65941978]
[1727315145241,2.6686,148.05,147.97,16.24]
[1727315145448,18.9086,148.05,147.97,16.24]
[1727315145644,18.9086,148.05,147.96,16.24]
[1727315146941,18.9086,148.05,147.95,3.3798]
[1727315147144,18.9086,148.05,147.95,19.6198]
[1727315148046,3.3793,147.98,147.95,16.24]
[1727315150856,3.3791,147.99,147.97,16.24]
[1727315151161,2.6686,148.05,147.98,16.24]
[1727315151357,3.3787,148.01,147.98,16.24]
[1727315152061,3.3787,148.01,147.98,19.55462293]
[1727315152749,3.3787,148.01,147.98,22.93392293]
[1727315154154,3.3785,148.02,147.98,6.69392293]
[1727315154353,3.3785,148.02,148.01,10.38]
[1727315156559,3.3782,148.03,148.01,10.38]
[1727315157256,3.3782,148.03,148.02,10.38]
[1727315162069,2.7195,148.09,148.02,10.38]
[1727315162267,1.4026,148.09,148.07,10.38]
[1727315162467,3.377,148.08,148.07,10.38]
[1727315164167,10.38,148.11,148.01,84.4984]
[1727315164363,10.38,148.09,148.05,10.38]
[1727315164770,3.3779,148.05,148.03,10.38]
[1727315164966,10.38,148.06,148.01,91.5]
[1727315165165,10.38,148.06,148.01,81.12]
[1727315165359,10.38,148.06,148.01,91.5]
[1727315165666,3.3784,148.02,148.01,81.12]
[1727315166663,13.7584,148.02,148.01,81.12]
[1727315167358,3.3784,148.02,148.01,81.12]
[1727315167761,11.7657,148.06,148.01,91.5]
[1727315167961,1.3857,148.06,148.03,10.38]
[1727315168165,3.3779,148.04,148.02,10.38]
[1727315168371,1.3857,148.06,148.01,81.12]
[1727315168766,3.378,148.04,148.0,16.22]
[1727315168972,2.684,148.07,148.0,16.22]
[1727315169170,2.684,148.07,148.0,19.5988]
[1727315169469,1.3742,148.07,148.02,16.22]
[1727315169662,1.3742,148.07,148.0,16.22]
[1727315169866,17.5942,148.07,147.98,16.22]
[1727315171376,3.3787,148.01,147.98,16.22]
[1727315171571,17.5942,148.07,147.98,16.22]
[1727315171767,16.22,148.05,147.96,81.12]
[1727315171968,3.379,148.0,147.96,81.12]
[1727315172372,3.379,148.0,147.96,97.34]
[1727315173167,3.3791,147.99,147.96,97.34]
[1727315173373,1.3726,148.04,147.96,97.34]
[1727315173877,3.3792,147.99,147.96,97.34]
[1727315174773,1.3726,148.04,147.96,97.34]
[1727315175974,3.3795,147.97,147.96,97.34]
[1727315176273,1.3726,148.04,147.96,97.34]
[1727315176274,16.22,148.03,147.96,81.12]
[1727315176778,3.3795,147.97,147.96,81.12]
[1727315177481,3.3795,147.97,147.9,16.22]
[1727315177482,1.333,148.0,147.9,16.22]